[Event "Early-Titled-Tuesday-Blitz-May-28-2024"]
[Site "Chess.com"]
[Date "2024.05.28"]
[Round "11"]
[White "PeshkaCh"]
[Black "juancruzarias"]
[Result "1-0"]
[WhiteElo "2859"]
[BlackElo "2681"]
[TimeControl "180+1"]
[EndTime "10:10:17 PDT"]
[Termination "PeshkaCh won on time"]

1. Nf3 {[%clk 0:03:00.9]} 1... d5 {[%clk 0:02:58]} 2. d4 {[%clk 0:03:01.2]} 2...
Nf6 {[%clk 0:02:56.9]} 3. c4 {[%clk 0:03:01.7]} 3... e6 {[%clk 0:02:56.5]} 4.
Nc3 {[%clk 0:03:01.5]} 4... a6 {[%clk 0:02:56]} 5. cxd5 {[%clk 0:03:00.8]} 5...
exd5 {[%clk 0:02:56.9]} 6. Bg5 {[%clk 0:03:01.3]} 6... c6 {[%clk 0:02:54.2]} 7.
e3 {[%clk 0:03:01.4]} 7... Be7 {[%clk 0:02:54.1]} 8. Bd3 {[%clk 0:03:02]} 8...
h6 {[%clk 0:02:54.3]} 9. Bh4 {[%clk 0:03:02.1]} 9... O-O {[%clk 0:02:54.7]} 10.
Qc2 {[%clk 0:02:57]} 10... Re8 {[%clk 0:02:54.4]} 11. Ne5 {[%clk 0:02:55.2]}
11... Nfd7 {[%clk 0:02:49.7]} 12. Bh7+ {[%clk 0:02:27.9]} 12... Kf8 {[%clk
0:02:48.9]} 13. Bg3 {[%clk 0:02:25.3]} 13... Nxe5 {[%clk 0:02:46.3]} 14. Bxe5
{[%clk 0:02:26.2]} 14... Bd6 {[%clk 0:02:38.5]} 15. Bxd6+ {[%clk 0:02:17.2]}
15... Qxd6 {[%clk 0:02:39.4]} 16. Bd3 {[%clk 0:02:12.5]} 16... Nd7 {[%clk
0:02:39.1]} 17. O-O {[%clk 0:02:10.5]} 17... Nf6 {[%clk 0:02:38.6]} 18. h3
{[%clk 0:02:06.8]} 18... Bd7 {[%clk 0:02:26.5]} 19. Na4 {[%clk 0:02:06.5]} 19...
Rab8 {[%clk 0:02:17.5]} 20. Nc5 {[%clk 0:02:03.5]} 20... Kg8 {[%clk 0:02:06.9]}
21. a4 {[%clk 0:02:00]} 21... g5 {[%clk 0:01:31.7]} 22. Bf5 {[%clk 0:01:27.8]}
22... Bxf5 {[%clk 0:01:22.8]} 23. Qxf5 {[%clk 0:01:28.7]} 23... Ne4 {[%clk
0:01:19.2]} 24. b4 {[%clk 0:01:16.6]} 24... Nxc5 {[%clk 0:01:11]} 25. bxc5
{[%clk 0:01:17.5]} 25... Qe7 {[%clk 0:01:06.2]} 26. Rab1 {[%clk 0:01:16.5]}
26... Rbc8 {[%clk 0:01:05.5]} 27. Rb6 {[%clk 0:01:16.3]} 27... Rc7 {[%clk
0:01:05.3]} 28. Rfb1 {[%clk 0:01:16.8]} 28... Rd8 {[%clk 0:01:02.3]} 29. R1b2
{[%clk 0:00:53.8]} 29... Rdd7 {[%clk 0:01:01.2]} 30. Kf1 {[%clk 0:00:53.1]}
30... Kg7 {[%clk 0:01:00.8]} 31. Ke2 {[%clk 0:00:52.4]} 31... Qf6 {[%clk
0:00:59]} 32. Qb1 {[%clk 0:00:36.3]} 32... Qe7 {[%clk 0:00:57.1]} 33. Kd2 {[%clk
0:00:36.3]} 33... h5 {[%clk 0:00:50.2]} 34. Kc3 {[%clk 0:00:34.5]} 34... Qf6
{[%clk 0:00:26.8]} 35. Qd1 {[%clk 0:00:29.3]} 35... Kh6 {[%clk 0:00:25]} 36. Kb4
{[%clk 0:00:26.7]} 36... Re7 {[%clk 0:00:23.9]} 37. Ka5 {[%clk 0:00:27.1]} 37...
Rcd7 {[%clk 0:00:23.7]} 38. Qb1 {[%clk 0:00:25.6]} 38... Kg7 {[%clk 0:00:17.4]}
39. Rxb7 {[%clk 0:00:14.5]} 39... Rxb7 {[%clk 0:00:14.9]} 40. Rxb7 {[%clk
0:00:15.4]} 40... Re6 {[%clk 0:00:13.9]} 41. Qb2 {[%clk 0:00:13.1]} 41... Qd8+
{[%clk 0:00:13.5]} 42. Rb6 {[%clk 0:00:12.1]} 42... Qf6 {[%clk 0:00:13.1]} 43.
Rxa6 {[%clk 0:00:11.1]} 43... Qd8+ {[%clk 0:00:10.4]} 44. Rb6 {[%clk 0:00:09.9]}
44... Qa8+ {[%clk 0:00:10.8]} 45. Kb4 {[%clk 0:00:10.6]} 45... Qa7 {[%clk
0:00:09.4]} 46. a5 {[%clk 0:00:11.2]} 46... Qc7 {[%clk 0:00:08.9]} 47. a6 {[%clk
0:00:11.6]} 47... Re7 {[%clk 0:00:07.4]} 48. Ka5 {[%clk 0:00:11.8]} 48... Re8
{[%clk 0:00:06.7]} 49. Qe2 {[%clk 0:00:12]} 49... h4 {[%clk 0:00:04.4]} 50. Qg4
{[%clk 0:00:11.9]} 50... Kg6 {[%clk 0:00:04.6]} 51. Qf3 {[%clk 0:00:11.7]} 51...
f6 {[%clk 0:00:04.9]} 52. Qd1 {[%clk 0:00:11.3]} 52... Rc8 {[%clk 0:00:03.4]}
53. Qd3+ {[%clk 0:00:11.2]} 53... f5 {[%clk 0:00:02.6]} 54. Qb3 {[%clk
0:00:11.6]} 54... Kf7 {[%clk 0:00:02.9]} 55. Qb1 {[%clk 0:00:11.3]} 55... Ke6
{[%clk 0:00:02.9]} 56. Qd1 {[%clk 0:00:08.5]} 56... Ra8 {[%clk 0:00:03]} 57. Qh5
{[%clk 0:00:07.8]} 57... Rf8 {[%clk 0:00:03.9]} 58. Qg6+ {[%clk 0:00:07.1]}
58... Rf6 {[%clk 0:00:04.1]} 59. Qe8+ {[%clk 0:00:07.4]} 1-0

[Event "Early-Titled-Tuesday-Blitz-May-28-2024"]
[Site "Chess.com"]
[Date "2024.05.28"]
[Round "11"]
[White "alexrustemov"]
[Black "Oleksandr_Bortnyk"]
[Result "0-1"]
[WhiteElo "2845"]
[BlackElo "3017"]
[TimeControl "180+1"]
[EndTime "10:10:19 PDT"]
[Termination "Oleksandr_Bortnyk won by checkmate"]

1. d4 {[%clk 0:03:00.9]} 1... Nf6 {[%clk 0:02:54.6]} 2. c4 {[%clk 0:03:01.1]}
2... b6 {[%clk 0:02:54.5]} 3. Nf3 {[%clk 0:03:00]} 3... Bb7 {[%clk 0:02:54.9]}
4. g3 {[%clk 0:03:00.1]} 4... g6 {[%clk 0:02:55.3]} 5. Bg2 {[%clk 0:02:59.9]}
5... Bg7 {[%clk 0:02:56.2]} 6. O-O {[%clk 0:02:59.9]} 6... O-O {[%clk
0:02:56.7]} 7. d5 {[%clk 0:02:59.3]} 7... Na6 {[%clk 0:02:56.5]} 8. Nc3 {[%clk
0:02:58.9]} 8... Nc5 {[%clk 0:02:56.8]} 9. Re1 {[%clk 0:02:58.9]} 9... Nfe4
{[%clk 0:02:51.9]} 10. Nxe4 {[%clk 0:02:58]} 10... Nxe4 {[%clk 0:02:52.8]} 11.
Qc2 {[%clk 0:02:58.4]} 11... Nc5 {[%clk 0:02:52.1]} 12. e4 {[%clk 0:02:50.6]}
12... a5 {[%clk 0:02:52.3]} 13. Be3 {[%clk 0:02:49.7]} 13... e5 {[%clk
0:02:50.2]} 14. b3 {[%clk 0:02:36.5]} 14... d6 {[%clk 0:02:48.4]} 15. a3 {[%clk
0:02:33.4]} 15... a4 {[%clk 0:02:48.9]} 16. b4 {[%clk 0:02:33.2]} 16... Nb3
{[%clk 0:02:45.1]} 17. Rad1 {[%clk 0:02:32]} 17... Bc8 {[%clk 0:02:39.3]} 18.
Nd2 {[%clk 0:02:29.6]} 18... Nd4 {[%clk 0:02:05.2]} 19. Bxd4 {[%clk 0:02:29.1]}
19... exd4 {[%clk 0:02:06.1]} 20. f4 {[%clk 0:02:29.5]} 20... Bg4 {[%clk
0:02:02.5]} 21. Bf3 {[%clk 0:02:28.9]} 21... Bh3 {[%clk 0:01:59.1]} 22. Bg2
{[%clk 0:02:27.5]} 22... Bg4 {[%clk 0:01:59.4]} 23. Bf3 {[%clk 0:02:27.5]} 23...
Qd7 {[%clk 0:01:57]} 24. Bxg4 {[%clk 0:02:24.6]} 24... Qxg4 {[%clk 0:01:57.9]}
25. Qd3 {[%clk 0:02:24.7]} 25... Rae8 {[%clk 0:01:52.5]} 26. Kg2 {[%clk
0:02:22.2]} 26... f5 {[%clk 0:01:46.4]} 27. Qf3 {[%clk 0:02:18.6]} 27... h5
{[%clk 0:01:29.4]} 28. h3 {[%clk 0:02:15.3]} 28... Qxf3+ {[%clk 0:01:27.9]} 29.
Kxf3 {[%clk 0:02:15.7]} 29... d3 {[%clk 0:01:13]} 30. Re3 {[%clk 0:02:12.3]}
30... g5 {[%clk 0:00:52.1]} 31. exf5 {[%clk 0:01:59.8]} 31... g4+ {[%clk
0:00:50.5]} 32. hxg4 {[%clk 0:01:54.4]} 32... hxg4+ {[%clk 0:00:50.7]} 33. Kf2
{[%clk 0:01:54.7]} 33... Bd4 {[%clk 0:00:50.9]} 34. Nf1 {[%clk 0:01:54.5]} 34...
Rxf5 {[%clk 0:00:40.3]} 35. Rxd3 {[%clk 0:01:53.5]} 35... Bxe3+ {[%clk
0:00:40.9]} 36. Nxe3 {[%clk 0:01:53.5]} 36... Rh5 {[%clk 0:00:41.5]} 37. Nxg4
{[%clk 0:01:52.9]} 37... Kf7 {[%clk 0:00:41.6]} 38. Kf3 {[%clk 0:01:46.5]} 38...
Rh1 {[%clk 0:00:36.3]} 39. Ne3 {[%clk 0:01:44.8]} 39... Rb1 {[%clk 0:00:34.1]}
40. Ke2 {[%clk 0:01:21.9]} 40... Rb2+ {[%clk 0:00:31.2]} 41. Rd2 {[%clk
0:01:19.9]} 41... Rb3 {[%clk 0:00:29.1]} 42. Rd3 {[%clk 0:01:20]} 42... Rb2+
{[%clk 0:00:25.8]} 43. Rd2 {[%clk 0:01:19.7]} 43... Rb3 {[%clk 0:00:26]} 44. Rd3
{[%clk 0:01:20.1]} 44... Rh8 {[%clk 0:00:25.7]} 45. Rxb3 {[%clk 0:00:53.6]}
45... axb3 {[%clk 0:00:26.6]} 46. Kd2 {[%clk 0:00:54.1]} 46... Rh2+ {[%clk
0:00:22.3]} 47. Kc1 {[%clk 0:00:54]} 47... Re2 {[%clk 0:00:17.8]} 48. Nf5 {[%clk
0:00:51]} 48... Rc2+ {[%clk 0:00:13]} 49. Kb1 {[%clk 0:00:51.2]} 49... Kf6
{[%clk 0:00:10.4]} 50. Nd4 {[%clk 0:00:37.2]} 50... Rxc4 {[%clk 0:00:10.5]} 51.
Nb5 {[%clk 0:00:37.5]} 51... Rc2 {[%clk 0:00:10.3]} 52. g4 {[%clk 0:00:32.7]}
52... Rc4 {[%clk 0:00:07.7]} 53. Kb2 {[%clk 0:00:27.1]} 53... Rxf4 {[%clk
0:00:07.6]} 54. Kxb3 {[%clk 0:00:23.1]} 54... Rxg4 {[%clk 0:00:06.9]} 55. Nxc7
{[%clk 0:00:22.8]} 55... Ke5 {[%clk 0:00:07.4]} 56. Ka4 {[%clk 0:00:15.2]} 56...
Rg7 {[%clk 0:00:06.9]} 57. Na6 {[%clk 0:00:12.5]} 57... Kxd5 {[%clk 0:00:06]}
58. Kb5 {[%clk 0:00:13.2]} 58... Ke5 {[%clk 0:00:01.5]} 59. Kxb6 {[%clk
0:00:12.4]} 59... d5 {[%clk 0:00:02]} 60. Nc5 {[%clk 0:00:11.9]} 60... d4 {[%clk
0:00:02.4]} 61. a4 {[%clk 0:00:10.9]} 61... Kd5 {[%clk 0:00:02.5]} 62. Kb5
{[%clk 0:00:10.7]} 62... Rg8 {[%clk 0:00:01.9]} 63. a5 {[%clk 0:00:04.8]} 63...
Rb8+ {[%clk 0:00:02.5]} 64. Ka4 {[%clk 0:00:03.3]} 64... Kc4 {[%clk 0:00:03.2]}
65. Na6 {[%clk 0:00:03.1]} 65... d3 {[%clk 0:00:02.8]} 66. Nxb8 {[%clk 0:00:01]}
66... d2 {[%clk 0:00:03.7]} 67. Nd7 {[%clk 0:00:01]} 67... d1=Q+ {[%clk
0:00:04.6]} 68. Ka3 {[%clk 0:00:00.7]} 68... Qb3# {[%clk 0:00:05.5]} 0-1

[Event "Early-Titled-Tuesday-Blitz-May-28-2024"]
[Site "Chess.com"]
[Date "2024.05.28"]
[Round "11"]
[White "TatjanaVasilevich"]
[Black "stollenmonster"]
[Result "0-1"]
[WhiteElo "2594"]
[BlackElo "2863"]
[TimeControl "180+1"]
[EndTime "10:10:20 PDT"]
[Termination "stollenmonster won on time"]

1. d4 {[%clk 0:03:00.9]} 1... Nf6 {[%clk 0:02:59.7]} 2. c4 {[%clk 0:02:59.8]}
2... e6 {[%clk 0:03:00]} 3. Nc3 {[%clk 0:02:59]} 3... d5 {[%clk 0:03:00.9]} 4.
cxd5 {[%clk 0:02:58.7]} 4... Nxd5 {[%clk 0:03:01.8]} 5. e4 {[%clk 0:02:58.4]}
5... Nxc3 {[%clk 0:03:02]} 6. bxc3 {[%clk 0:02:59.3]} 6... b6 {[%clk 0:03:02.9]}
7. Nf3 {[%clk 0:02:58.1]} 7... Bb7 {[%clk 0:03:03.4]} 8. Bd3 {[%clk 0:02:57.9]}
8... Be7 {[%clk 0:03:03.9]} 9. O-O {[%clk 0:02:57.1]} 9... Nd7 {[%clk
0:03:04.6]} 10. Qe2 {[%clk 0:02:57]} 10... O-O {[%clk 0:03:04.8]} 11. Rd1 {[%clk
0:02:57.2]} 11... c5 {[%clk 0:03:03.8]} 12. a4 {[%clk 0:02:57.3]} 12... Rc8
{[%clk 0:02:59.5]} 13. Be3 {[%clk 0:02:47.4]} 13... Qc7 {[%clk 0:02:56.9]} 14.
Rab1 {[%clk 0:02:29.1]} 14... Rfd8 {[%clk 0:02:57]} 15. Ba6 {[%clk 0:02:19.9]}
15... Bxa6 {[%clk 0:02:55.7]} 16. Qxa6 {[%clk 0:02:19.6]} 16... Nf6 {[%clk
0:02:56.4]} 17. Qd3 {[%clk 0:01:58.5]} 17... cxd4 {[%clk 0:02:56.3]} 18. cxd4
{[%clk 0:01:58.6]} 18... Qc2 {[%clk 0:02:45.6]} 19. Qa6 {[%clk 0:01:52]} 19...
Qxe4 {[%clk 0:02:35]} 20. Qxa7 {[%clk 0:01:48.5]} 20... Nd5 {[%clk 0:02:35.3]}
21. Bg5 {[%clk 0:01:37.3]} 21... Bxg5 {[%clk 0:02:23]} 22. Qxf7+ {[%clk
0:01:36.9]} 22... Kxf7 {[%clk 0:01:45.1]} 23. Nxg5+ {[%clk 0:01:36]} 23... Ke7
{[%clk 0:01:46]} 24. Nxe4 {[%clk 0:01:35.5]} 24... Rc4 {[%clk 0:01:46.7]} 25. a5
{[%clk 0:01:03]} 25... bxa5 {[%clk 0:01:44.6]} 26. Re1 {[%clk 0:00:36.4]} 26...
Rxd4 {[%clk 0:01:29.9]} 27. Nc5 {[%clk 0:00:34.3]} 27... Nf4 {[%clk 0:00:58.2]}
28. g3 {[%clk 0:00:28.7]} 28... Rc4 {[%clk 0:00:36.4]} 29. Rb7+ {[%clk
0:00:23.4]} 29... Ke8 {[%clk 0:00:28.5]} 30. Nxe6 {[%clk 0:00:13.8]} 30... Nxe6
{[%clk 0:00:27.3]} 31. Rxe6+ {[%clk 0:00:14.7]} 31... Kf8 {[%clk 0:00:27.6]} 32.
Ree7 {[%clk 0:00:15.1]} 32... Rg4 {[%clk 0:00:27.9]} 33. Ra7 {[%clk 0:00:12]}
33... Rg5 {[%clk 0:00:24.6]} 34. h4 {[%clk 0:00:11.2]} 34... Rg4 {[%clk
0:00:15.5]} 35. Reb7 {[%clk 0:00:09.2]} 35... a4 {[%clk 0:00:12.7]} 36. Kg2
{[%clk 0:00:08.9]} 36... h5 {[%clk 0:00:12.5]} 37. Ra5 {[%clk 0:00:07]} 37...
Kg8 {[%clk 0:00:07.9]} 38. Rxh5 {[%clk 0:00:05.9]} 38... Ra8 {[%clk 0:00:07.8]}
39. Rb2 {[%clk 0:00:06]} 39... a3 {[%clk 0:00:07.8]} 40. Ra2 {[%clk 0:00:06.3]}
40... Rb4 {[%clk 0:00:08.3]} 41. Rd5 {[%clk 0:00:05.4]} 41... Rb2 {[%clk
0:00:08.5]} 42. Rxb2 {[%clk 0:00:05.7]} 42... axb2 {[%clk 0:00:09.4]} 43. Rb5
{[%clk 0:00:06.2]} 43... Ra2 {[%clk 0:00:09.2]} 44. Kf3 {[%clk 0:00:06.4]} 44...
Kf8 {[%clk 0:00:09.3]} 45. Ke3 {[%clk 0:00:06.7]} 45... Ke8 {[%clk 0:00:09.7]}
46. g4 {[%clk 0:00:07.2]} 46... Kf8 {[%clk 0:00:09.9]} 47. f4 {[%clk 0:00:07.4]}
47... Ra3+ {[%clk 0:00:09]} 48. Ke4 {[%clk 0:00:07.2]} 48... Ra4+ {[%clk
0:00:08.6]} 49. Ke3 {[%clk 0:00:07.3]} 49... Ra3+ {[%clk 0:00:08.7]} 50. Ke2
{[%clk 0:00:07.7]} 50... Ra4 {[%clk 0:00:07.8]} 51. Kf3 {[%clk 0:00:04]} 51...
Ra3+ {[%clk 0:00:08.2]} 52. Ke2 {[%clk 0:00:04]} 52... Ra4 {[%clk 0:00:08.3]}
53. Rb8+ {[%clk 0:00:03.6]} 53... Kf7 {[%clk 0:00:08.2]} 54. Kf3 {[%clk
0:00:03.7]} 54... Ra3+ {[%clk 0:00:08.2]} 55. Ke4 {[%clk 0:00:02.3]} 55... Ra4+
{[%clk 0:00:08.5]} 56. Ke5 {[%clk 0:00:02.4]} 56... Ra5+ {[%clk 0:00:09]} 57.
Kd6 {[%clk 0:00:02.9]} 57... Ra6+ {[%clk 0:00:09.5]} 58. Kc5 {[%clk 0:00:00.9]}
58... Ra5+ {[%clk 0:00:09.9]} 0-1

[Event "Early-Titled-Tuesday-Blitz-May-28-2024"]
[Site "Chess.com"]
[Date "2024.05.28"]
[Round "11"]
[White "FMStan15"]
[Black "Navyblue1"]
[Result "1/2-1/2"]
[WhiteElo "2154"]
[BlackElo "2244"]
[TimeControl "180+1"]
[EndTime "10:10:32 PDT"]
[Termination "Game drawn by stalemate"]

1. e4 {[%clk 0:02:51.3]} 1... c5 {[%clk 0:02:58.7]} 2. c3 {[%clk 0:02:51]} 2...
Nf6 {[%clk 0:02:55]} 3. e5 {[%clk 0:02:49.2]} 3... Nd5 {[%clk 0:02:54]} 4. d4
{[%clk 0:02:50.1]} 4... cxd4 {[%clk 0:02:52.5]} 5. Nf3 {[%clk 0:02:51]} 5... d6
{[%clk 0:02:51.9]} 6. cxd4 {[%clk 0:02:51.2]} 6... Nc6 {[%clk 0:02:48.1]} 7. Bc4
{[%clk 0:02:50.4]} 7... Nb6 {[%clk 0:02:47.8]} 8. Bb5 {[%clk 0:02:50.7]} 8...
dxe5 {[%clk 0:02:42.4]} 9. Nxe5 {[%clk 0:02:50.9]} 9... Bd7 {[%clk 0:02:42.9]}
10. Nxd7 {[%clk 0:02:51.1]} 10... Qxd7 {[%clk 0:02:42.3]} 11. O-O {[%clk
0:02:51.2]} 11... e6 {[%clk 0:02:42.1]} 12. Nc3 {[%clk 0:02:50.4]} 12... Be7
{[%clk 0:02:36.4]} 13. Be3 {[%clk 0:02:50.5]} 13... O-O {[%clk 0:02:33.4]} 14.
Qg4 {[%clk 0:02:50.3]} 14... Rad8 {[%clk 0:02:25.8]} 15. Rad1 {[%clk 0:02:47]}
15... f5 {[%clk 0:02:22.1]} 16. Qf3 {[%clk 0:02:31.7]} 16... a6 {[%clk
0:02:07.7]} 17. Bxc6 {[%clk 0:02:31]} 17... bxc6 {[%clk 0:02:03.3]} 18. Bf4
{[%clk 0:02:25.8]} 18... Nd5 {[%clk 0:02:02.8]} 19. Nxd5 {[%clk 0:02:25.4]}
19... exd5 {[%clk 0:01:59.4]} 20. Be5 {[%clk 0:02:22.8]} 20... Bf6 {[%clk
0:01:56.7]} 21. Rfe1 {[%clk 0:02:21.2]} 21... Rde8 {[%clk 0:01:51.8]} 22. Qa3
{[%clk 0:02:20.3]} 22... Bxe5 {[%clk 0:01:35.5]} 23. dxe5 {[%clk 0:02:15.3]}
23... Qb7 {[%clk 0:01:34.9]} 24. b3 {[%clk 0:02:13.7]} 24... Re6 {[%clk
0:01:22.6]} 25. Qc5 {[%clk 0:02:12.3]} 25... f4 {[%clk 0:01:12.4]} 26. Rd4
{[%clk 0:02:03.6]} 26... Qb8 {[%clk 0:00:51.4]} 27. h3 {[%clk 0:01:41.7]} 27...
Rxe5 {[%clk 0:00:46.8]} 28. Rxe5 {[%clk 0:01:27.4]} 28... Qxe5 {[%clk
0:00:47.7]} 29. Rd1 {[%clk 0:01:21.6]} 29... Qe6 {[%clk 0:00:40.3]} 30. f3
{[%clk 0:01:17.9]} 30... Re8 {[%clk 0:00:32.6]} 31. Rc1 {[%clk 0:01:17.7]} 31...
Qe3+ {[%clk 0:00:24.3]} 32. Qxe3 {[%clk 0:01:16.8]} 32... fxe3 {[%clk
0:00:25.2]} 33. Kf1 {[%clk 0:01:15.3]} 33... Re6 {[%clk 0:00:21.3]} 34. Ke2
{[%clk 0:01:12.8]} 34... Kf7 {[%clk 0:00:19.7]} 35. b4 {[%clk 0:01:10.8]} 35...
Kf6 {[%clk 0:00:18.7]} 36. Kd3 {[%clk 0:00:45.9]} 36... g5 {[%clk 0:00:14.8]}
37. Re1 {[%clk 0:00:43.3]} 37... Kf5 {[%clk 0:00:13.5]} 38. g3 {[%clk
0:00:36.2]} 38... h5 {[%clk 0:00:10.5]} 39. Rxe3 {[%clk 0:00:35.4]} 39... Rxe3+
{[%clk 0:00:11.4]} 40. Kxe3 {[%clk 0:00:35.4]} 40... Ke5 {[%clk 0:00:12.3]} 41.
Kd3 {[%clk 0:00:35]} 41... d4 {[%clk 0:00:12.4]} 42. a4 {[%clk 0:00:23.4]} 42...
h4 {[%clk 0:00:10.3]} 43. g4 {[%clk 0:00:08.9]} 43... Kd5 {[%clk 0:00:09]} 44.
f4 {[%clk 0:00:07.4]} 44... gxf4 {[%clk 0:00:08.4]} 45. g5 {[%clk 0:00:07.8]}
45... Ke5 {[%clk 0:00:08.4]} 46. g6 {[%clk 0:00:08]} 46... Kf6 {[%clk
0:00:08.5]} 47. Kxd4 {[%clk 0:00:08.4]} 47... Kxg6 {[%clk 0:00:09.1]} 48. Ke5
{[%clk 0:00:04.3]} 48... Kg5 {[%clk 0:00:09.4]} 49. Ke4 {[%clk 0:00:02.2]} 49...
f3 {[%clk 0:00:09.6]} 50. Kxf3 {[%clk 0:00:02.3]} 50... Kf5 {[%clk 0:00:10.3]}
51. a5 {[%clk 0:00:01.8]} 51... Ke5 {[%clk 0:00:07.1]} 52. Ke3 {[%clk
0:00:02.3]} 52... Kd5 {[%clk 0:00:05.8]} 53. Kd3 {[%clk 0:00:02.7]} 53... Ke6
{[%clk 0:00:04]} 54. Ke4 {[%clk 0:00:02.8]} 54... Kf6 {[%clk 0:00:01]} 55. Kf4
{[%clk 0:00:03.1]} 55... Ke6 {[%clk 0:00:01]} 56. Kg4 {[%clk 0:00:02]} 56... Ke5
{[%clk 0:00:01.2]} 57. Kxh4 {[%clk 0:00:02.4]} 57... Kf4 {[%clk 0:00:01.5]} 58.
Kh5 {[%clk 0:00:01.4]} 58... Kf5 {[%clk 0:00:02.1]} 59. h4 {[%clk 0:00:01]}
59... Kf6 {[%clk 0:00:02.4]} 60. Kg4 {[%clk 0:00:01.1]} 60... Kg6 {[%clk
0:00:02.8]} 61. Kf4 {[%clk 0:00:02]} 61... Kh5 {[%clk 0:00:03.5]} 62. Ke4 {[%clk
0:00:02.9]} 62... Kxh4 {[%clk 0:00:04.4]} 63. Kd4 {[%clk 0:00:03.7]} 63... Kg5
{[%clk 0:00:05.3]} 64. Kc5 {[%clk 0:00:04.4]} 64... Kf6 {[%clk 0:00:06.2]} 65.
Kxc6 {[%clk 0:00:05.1]} 65... Ke7 {[%clk 0:00:07.1]} 66. Kb6 {[%clk 0:00:05.8]}
66... Kd8 {[%clk 0:00:07]} 67. Kxa6 {[%clk 0:00:06.7]} 67... Kc8 {[%clk
0:00:07.8]} 68. b5 {[%clk 0:00:07.5]} 68... Kb8 {[%clk 0:00:08.4]} 69. b6 {[%clk
0:00:08.4]} 69... Ka8 {[%clk 0:00:08.7]} 70. b7+ {[%clk 0:00:08.4]} 70... Kb8
{[%clk 0:00:09.3]} 71. Kb5 {[%clk 0:00:05.9]} 71... Kxb7 {[%clk 0:00:09.6]} 72.
a6+ {[%clk 0:00:04.7]} 72... Ka7 {[%clk 0:00:10.5]} 73. Ka5 {[%clk 0:00:04.5]}
73... Ka8 {[%clk 0:00:11.4]} 74. Kb6 {[%clk 0:00:05]} 74... Kb8 {[%clk
0:00:11.9]} 75. Kc6 {[%clk 0:00:04.8]} 75... Ka8 {[%clk 0:00:12.8]} 76. Kb5
{[%clk 0:00:05.3]} 76... Ka7 {[%clk 0:00:13.7]} 77. Ka5 {[%clk 0:00:04.4]} 77...
Ka8 {[%clk 0:00:14.6]} 78. Kb6 {[%clk 0:00:04.9]} 78... Kb8 {[%clk 0:00:14.9]}
79. a7+ {[%clk 0:00:04.9]} 79... Ka8 {[%clk 0:00:15.8]} 80. Ka6 {[%clk
0:00:05.1]} 1/2-1/2

[Event "Early-Titled-Tuesday-Blitz-May-28-2024"]
[Site "Chess.com"]
[Date "2024.05.28"]
[Round "11"]
[White "carloseduar100"]
[Black "VirtualCoach"]
[Result "0-1"]
[WhiteElo "2281"]
[BlackElo "2192"]
[TimeControl "180+1"]
[EndTime "10:10:35 PDT"]
[Termination "VirtualCoach won on time"]

1. g3 {[%clk 0:03:00.5]} 1... c5 {[%clk 0:02:54.4]} 2. Bg2 {[%clk 0:03:01.4]}
2... Nc6 {[%clk 0:02:47.3]} 3. Nf3 {[%clk 0:03:02.3]} 3... g6 {[%clk 0:02:44.5]}
4. O-O {[%clk 0:03:03.2]} 4... Bg7 {[%clk 0:02:45.1]} 5. c3 {[%clk 0:03:02.7]}
5... Nf6 {[%clk 0:02:44.6]} 6. d4 {[%clk 0:03:03.6]} 6... cxd4 {[%clk
0:02:44.6]} 7. cxd4 {[%clk 0:03:03.8]} 7... d5 {[%clk 0:02:45.3]} 8. Nc3 {[%clk
0:03:04.3]} 8... O-O {[%clk 0:02:45]} 9. Bg5 {[%clk 0:03:04.6]} 9... h6 {[%clk
0:02:43.8]} 10. Bxf6 {[%clk 0:03:04.8]} 10... Bxf6 {[%clk 0:02:43.7]} 11. e3
{[%clk 0:03:05.7]} 11... e6 {[%clk 0:02:39.4]} 12. a3 {[%clk 0:03:04.7]} 12...
Bd7 {[%clk 0:02:35.7]} 13. b4 {[%clk 0:03:04.2]} 13... Rc8 {[%clk 0:02:35.4]}
14. Rc1 {[%clk 0:03:04.6]} 14... a6 {[%clk 0:02:34.8]} 15. Ne2 {[%clk
0:03:04.3]} 15... Na7 {[%clk 0:02:34.2]} 16. Qb3 {[%clk 0:03:01.9]} 16... Nb5
{[%clk 0:02:31.6]} 17. Nd2 {[%clk 0:03:01.1]} 17... Qe7 {[%clk 0:02:25.4]} 18.
Rc5 {[%clk 0:03:00.8]} 18... b6 {[%clk 0:02:24.1]} 19. Rxc8 {[%clk 0:03:00.4]}
19... Rxc8 {[%clk 0:02:23.7]} 20. Rc1 {[%clk 0:03:00.4]} 20... Rd8 {[%clk
0:02:17.9]} 21. Nf4 {[%clk 0:02:49.5]} 21... Nd6 {[%clk 0:02:10.3]} 22. Rc7
{[%clk 0:02:45.7]} 22... Rc8 {[%clk 0:02:04.7]} 23. Qc2 {[%clk 0:02:39.3]} 23...
Qd8 {[%clk 0:01:59.1]} 24. Rxc8 {[%clk 0:02:34.3]} 24... Qxc8 {[%clk 0:01:58.4]}
25. Qxc8+ {[%clk 0:02:33.9]} 25... Bxc8 {[%clk 0:01:59.3]} 26. a4 {[%clk
0:02:31.9]} 26... Bd7 {[%clk 0:01:55.1]} 27. a5 {[%clk 0:02:30.4]} 27... bxa5
{[%clk 0:01:53]} 28. bxa5 {[%clk 0:02:31.3]} 28... Nb7 {[%clk 0:01:53]} 29. Bf1
{[%clk 0:02:27.3]} 29... Nxa5 {[%clk 0:01:30.3]} 30. Bxa6 {[%clk 0:02:21.1]}
30... Nc6 {[%clk 0:01:30.4]} 31. Nd3 {[%clk 0:02:20.5]} 31... Ne7 {[%clk
0:01:27.5]} 32. Nc5 {[%clk 0:02:20.3]} 32... Bc6 {[%clk 0:01:25.8]} 33. f4
{[%clk 0:02:20.4]} 33... Nf5 {[%clk 0:01:24.1]} 34. Kf2 {[%clk 0:02:09.7]} 34...
Nxd4 {[%clk 0:01:20.6]} 35. Bd3 {[%clk 0:01:50]} 35... Nf5 {[%clk 0:01:12.4]}
36. Bxf5 {[%clk 0:01:38.2]} 36... gxf5 {[%clk 0:01:11.5]} 37. Ke2 {[%clk
0:01:32.6]} 37... Kg7 {[%clk 0:01:11]} 38. Kd3 {[%clk 0:01:03.1]} 38... Bb5+
{[%clk 0:01:09.8]} 39. Kc2 {[%clk 0:00:59.6]} 39... Kg6 {[%clk 0:01:09.4]} 40.
Kb3 {[%clk 0:00:49.8]} 40... h5 {[%clk 0:01:07.8]} 41. Kb4 {[%clk 0:00:43.5]}
41... Bc6 {[%clk 0:01:06.9]} 42. Ka5 {[%clk 0:00:40.9]} 42... h4 {[%clk
0:01:06.1]} 43. Kb6 {[%clk 0:00:39.8]} 43... Be8 {[%clk 0:01:05.2]} 44. Kc7
{[%clk 0:00:39.8]} 44... hxg3 {[%clk 0:01:01.2]} 45. hxg3 {[%clk 0:00:39.8]}
45... Kh5 {[%clk 0:00:59.9]} 46. Nf1 {[%clk 0:00:17.6]} 46... Kg4 {[%clk
0:00:59.7]} 47. Nd7 {[%clk 0:00:15.4]} 47... Bc3 {[%clk 0:00:52.6]} 48. Kd8
{[%clk 0:00:13.1]} 48... Bxd7 {[%clk 0:00:51.2]} 49. Kxd7 {[%clk 0:00:14]} 49...
Bf6 {[%clk 0:00:49.2]} 50. Ke8 {[%clk 0:00:14]} 50... Bb2 {[%clk 0:00:31.5]} 51.
Kxf7 {[%clk 0:00:13.2]} 51... e5 {[%clk 0:00:31.6]} 52. fxe5 {[%clk 0:00:11.1]}
52... Bxe5 {[%clk 0:00:30.2]} 53. Ke6 {[%clk 0:00:11.6]} 53... Bxg3 {[%clk
0:00:26.7]} 54. Kxd5 {[%clk 0:00:09.2]} 54... Bb8 {[%clk 0:00:17.9]} 55. e4
{[%clk 0:00:09.1]} 55... f4 {[%clk 0:00:16.4]} 56. e5 {[%clk 0:00:08.3]} 56...
Bc7 {[%clk 0:00:11.8]} 57. Ke4 {[%clk 0:00:08.4]} 57... f3 {[%clk 0:00:09.3]}
58. e6 {[%clk 0:00:04.3]} 58... Bd6 {[%clk 0:00:09.4]} 0-1